Cogmind - Beta 17 @@@ ROGUE MODE // 2026.07.04 @ 22:40:35 Player: DreamCore Result: Destroyed by G-50 Soldier with Heavy Laser Performance ------------- Evolutions (2) 1000 Regions Visited (4) 800 Robots Destroyed (38) 190 Value Destroyed (1053) 1053 Prototype IDs (5) 100 Alien Tech Used (0) 0 Bonus (7897) 7897 TOTAL SCORE: 11040 Bonus ------- Follower Combat Kills 197 Prayed to X0-1V1 5000 Major X0-1V1 Interference 2700 Cogmind --------- Core Integrity 0/295 Matter 244/1000 Energy 100/100 System Corruption 0% Temperature Warm (135) Movement Core (200) Ox3 Location -8/Materials Parts ------- > --- POWER (1) -------- (None) > --- PROPULSION (3) --- (None) > --- UTILITY (5) ------ Medium Storage Unit Structural Scanner (fused) > --- WEAPON (2) ------- Mini Grenade Launcher > --- INVENTORY (10) --- Light Treads Improved Assault Rifle Improved Assault Rifle Gauss Rifle Light Cannon Peak State ------------ > --- POWER ------------ Cooled Ion Engine > --- PROPULSION ------- Aluminum Leg Aluminum Leg Armored Wheel > --- UTILITY ---------- Medium Storage Unit Structural Scanner Bomb Drone Bay X0-1V1's Piety Tracker > --- WEAPON ----------- Improved Assault Rifle Improved Assault Rifle > --- INVENTORY -------- Light Treads Improved Assault Rifle Gauss Rifle Light Cannon Mini Grenade Launcher Explosive Trap Explosive Trap Explosive Trap [Rating: 43] Favorites ----------- Power Cooled Ion Engine Engine Cooled Ion Engine Propulsion Aluminum Leg Treads Light Treads Leg Aluminum Leg Wheel Compact Wheel Utility X0-1V1's Piety Tracker Device X0-1V1's Piety Tracker Storage Medium Storage Unit Protection Light Armor Plating Weapon Improved Assault Rifle Energy Gun Small Laser Ballistic Gun Improved Assault Rifle Ballistic Cannon Light Cannon Launcher Mini Grenade Launcher Build | -11 -10 -9 -9 -8 ------- Run | Yrd Mat Mat Min Mat Slots Evolved 4 | . . 2 . 2 Power . | . . . . . Propulsion 2 | . . . . 2 Utility 2 | . . 2 . . Weapon . | . . . . . Parts Attached 38 | . 12 20 3 3 Power 6 | . 3 3 . . Engine 6 | . 3 3 . . Core . | . . . . . Reactor . | . . . . . Propulsion 10 | . 3 4 1 2 Treads 3 | . . 3 . . Leg 5 | . 3 . . 2 Wheel 2 | . . 1 1 . Hover . | . . . . . Flight . | . . . . . Utility 11 | . 3 6 2 . Device 7 | . 2 3 2 . Storage 3 | . 1 2 . . Processor . | . . . . . Hackware . | . . . . . Protection 1 | . . 1 . . Artifact . | . . . . . Weapon 11 | . 3 7 . 1 Energy Gun 3 | . 2 1 . . Energy Cannon . | . . . . . Ballistic Gun 6 | . 1 5 . . Ballistic Cannon 1 | . . 1 . . Launcher 1 | . . . . 1 Special Weapon . | . . . . . Impact Weapon . | . . . . . Slashing Weapon . | . . . . . Piercing Weapon . | . . . . . Special Melee Weapon . | . . . . . Unidentified Prototypes 3 | . 1 1 1 . Parts Lost 19 | . 4 8 1 6 Power 3 | . 1 1 . 1 Propulsion 5 | . 1 1 . 3 Utility 6 | . . 4 1 1 Weapon 5 | . 2 2 . 1 Highest Loss Streak 6 | . 3 2 1 6 To Critical Strikes . | . . . . . Average Backups 9 | . 7 9 9 6 Power . | . . . . . Propulsion 4 | . 3 5 5 2 Utility . | . . . . . Weapon 3 | . 1 3 4 4 Tool/Special . | . . . . . Unused Backups 12 | . 6 . 2 4 Power 1 | . 1 . . . Propulsion 5 | . 3 . 1 1 Utility . | . . . . . Weapon 6 | . 2 . 1 3 Tool/Special . | . . . . . Average Slot Usage (%) 90 | . 92 93 88 75 Engine 11 | . 12 11 11 9 Treads 3 | . . 10 . . Leg 6 | . 27 1 . 8 Wheel 5 | . . 1 11 9 Device 23 | . 10 20 31 22 Storage 15 | . 13 21 13 9 Protection 1 | . . 4 . . Energy Gun 5 | . 13 7 . . Ballistic Gun 16 | . 14 12 22 17 Peak Build Rating 43 | . 20 28 41 43 Average Rating 27 | . 14 23 37 34 On Entrance 20 | 6 6 20 28 41 Avg Prop Armor Cover (%) 5 | . . . . 5 Naked Turns . | . . . . . Heaviest Build 42 | 13 14 42 38 34 Greatest Support 40 | 20 20 40 16 20 Greatest Overweight (x) 2 | . 1 2 2 2 Average Overweight (x) 1 | . . . 2 1 Largest Inventory Capacity 10 | . 8 10 10 10 Average Capacity 9 | . 7 9 10 10 Most Carried 10 | . 8 10 10 10 Average Carried 9 | . 7 9 9 8 Final Capacity 10 | 8 8 10 10 10 Final Carried 10 | 6 8 10 10 5 Class Distribution -------------------- 81% | Mutant 17% | Scavenger-Mutant Dominant Class ---------------- Mutant | -10/Materials Scavenger-Mutant | -9/Materials Mutant | -9/Mines Commander-Mutant | -8/Materials Resources | -11 -10 -9 -9 -8 ----------- Run | Yrd Mat Mat Min Mat Matter Collected 1043 | 181 238 361 263 . Remotely . | . . . . . Salvage Created 1101 | . 457 322 118 204 Parts 73 | . 27 28 9 9 Haulers Intercepted 1 | . . 1 . . Recyclers Shooed 1 | . . 1 . . Parts Field Recycled . | . . . . . Retrieved Matter . | . . . . . Parts Self-Destructed . | . . . . . Prevented . | . . . . . Parts Restored . | . . . . . Kills | -11 -10 -9 -9 -8 ------- Run | Yrd Mat Mat Min Mat Combat Hostiles Destroyed 26 | . 6 9 3 8 Guns 14 | . 6 5 3 . Cannons 4 | . . 4 . . AOE 8 | . . . . 8 Classes Destroyed 11 | . 7 4 . . Worker 1 | . 1 . . . Builder 2 | . 1 1 . . Tunneler 1 | . 1 . . . Hauler 1 | . . 1 . . Recycler 1 | . 1 . . . Operator 2 | . 1 1 . . Watcher 4 | . 2 2 . . Swarmer 8 | . . 7 1 . Grunt 16 | . 6 . 2 8 Sentry 1 | . . 1 . . Hunter 1 | . . 1 . . Best Kill Streak 8 | . 3 5 1 8 Combat Bots Only 8 | . 2 5 1 8 Max Kills in Single Turn 3 | . 1 1 1 3 Gunslinging . | . . . . . Exploded 3 | . . . . 3 Melee . | . . . . . Uniques/NPCs Destroyed . | . . . . . Combat | -11 -10 -9 -9 -8 -------- Run | Yrd Mat Mat Min Mat Hostile Shots Fired 336 | . 104 130 30 72 Missed 96 | . 33 34 9 20 Hits 240 | . 71 96 21 52 Projectile 240 | . 71 96 21 52 Critical Strikes 6 | . 2 . . 4 Damage Taken 3243 | . 884 1205 242 912 Core 750 | . 165 236 41 308 Absorbed by Shields . | . . . . . Core Remaining (%) 39 | 100 5 . 14 . Volleys Fired 105 | . 42 45 14 4 Largest 2 | . 2 2 2 2 Hottest 85 | . 85 76 46 53 Shots Fired 204 | . 82 89 28 5 Gun 184 | . 82 73 28 1 Cannon 16 | . . 16 . . Launcher 4 | . . . . 4 Special . | . . . . . Kinetic 138 | . 44 65 28 1 Thermal 62 | . 38 24 . . Explosive 4 | . . . . 4 Electromagnetic . | . . . . . Robot Hit Streak 12 | . 12 9 6 11 Robot Miss Streak 5 | . 5 3 2 . Penetration Max . | . . . . . Secondary Targets 1 | . 1 . . . Max Gunslinging Chain 1 | . 1 . . . Shots Hit Robots 126 | . 55 47 19 5 Core Hits 86 | . 23 27 4 32 Critical Kills . | . . . . . Critical Parts Destroyed . | . . . . . Critical Strikes 1 | . . 1 . . Burn 1 | . . 1 . . Melee Attacks . | . . . . . Impact . | . . . . . Slashing . | . . . . . Piercing . | . . . . . Sneak Attacks . | . . . . . Combat Hostiles . | . . . . . Follow-up Attacks . | . . . . . Damage Inflicted 2833 | . 695 606 346 1186 Guns 1452 | . 695 438 306 13 Cannons 156 | . . 156 . . Explosions 1173 | . . . . 1173 Melee . | . . . . . Ramming 52 | . . 12 40 . Kinetic 1176 | . 429 428 306 13 Thermal 432 | . 266 166 . . Explosive 1173 | . . . . 1173 Electromagnetic . | . . . . . Impact . | . . . . . Slashing . | . . . . . Piercing . | . . . . . Highest Corruption 1 | . . . 1 . Average Corruption 1 | . . . 1 . Corruption Purged . | . . . . . Corruption Blocked . | . . . . . Effects 1 | . . . 1 . Matter Fused 1 | . . . 1 . Overload Shots . | . . . . . Overflow Damage 23 | . . . . 23 Projectiles . | . . . . . Explosions 23 | . . . . 23 Melee . | . . . . . Knockbacks . | . . . . . Impact . | . . . . . Kinetic . | . . . . . Secondary . | . . . . . Self-Inflicted Damage 108 | . . . 18 90 Shots 4 | . . . . 4 Rammed 11 | . . 5 6 . Targets Rammed 11 | . . 5 6 . Kicked . | . . . . . Crushed . | . . . . . Highest Temperature 240 | . 18 9 . 240 Average Temperature 94 | . 13 9 . 134 Received Heat Transfer 1176 | . 495 81 60 540 Siege Activations . | . . . . . Martial Activations . | . . . . . Shielding Activations . | . . . . . Robots Disrupted . | . . . . . Combat Hostiles . | . . . . . Robots Corrupted . | . . . . . Combat Hostiles . | . . . . . Parts Fried . | . . . . . Impact Corruptions . | . . . . . Robots Melted . | . . . . . Combat Hostiles . | . . . . . Parts Melted . | . . . . . Heat Transferred 1081 | . 600 481 . . Parts Sabotaged . | . . . . . Parts Stolen . | . . . . . Parts Stripped . | . . . . . Power Chain Reactions . | . . . . . Alert | -11 -10 -9 -9 -8 ------- Run | Yrd Mat Mat Min Mat Maximum Alert Level 2 | . 2 2 . . Low Security (%) 80 | . 97 39 100 100 Level 1 17 | . . 55 . . Level 2 2 | . 2 5 . . Level 3 . | . . . . . Level 4 . | . . . . . Level 5 . | . . . . . High Security . | . . . . . Max Security . | . . . . . Peak Influence 443 | . 443 429 192 111 Initial 186 | . . 186 105 9 Average 107 | . 34 243 55 5 Influence Increases 1673 | . 589 619 247 218 Destroy 0b10 Robot/C 780 | . 180 240 200 160 Destroy 0b10 Robot/NC 65 | . 35 30 . . Destroy Leader 142 | . 44 48 30 20 Allied During Kill 27 | . 5 5 17 . Trap Triggered on 0b10 20 | . . . . 20 Successful Hack 25 | . 14 5 . 6 Destroy Structure 14 | . . 2 . 12 Lose Combat Pursuer 30 | . 15 15 . . Miscellaneous 570 | . 296 274 . . Influence Decreases 1506 | . 147 790 492 77 Entered New Map 439 | . . 256 166 17 Time Decay 727 | . 117 334 276 . Search Patrol Dispatched 100 | . . 100 . . Lost Part 155 | . 30 80 10 35 Lost Ally 85 | . . 20 40 25 Squads Dispatched 11 | . . 3 . 8 Investigation 1 | . . . . 1 Extermination . | . . . . . Reinforcement 8 | . . 3 . 5 Assault 2 | . . . . 2 Garrison . | . . . . . Intercept . | . . . . . Searches Triggered 1 | . . 1 . . Construction Impeded . | . . . . . Haulers Reinforced . | . . . . . Active Scanning Responses . | . . . . . Cargo Convoy Interrupts . | . . . . . Stealth | -11 -10 -9 -9 -8 --------- Run | Yrd Mat Mat Min Mat Distress Signals 2 | . . . . 2 Communications Jammed . | . . . . . Distress Signals . | . . . . . Times Spotted 69 | . 15 25 11 18 Peak Tracking Total 16 | . 4 5 4 16 Tactical Retreats 2 | . 1 1 . . Traps | -11 -10 -9 -9 -8 ------- Run | Yrd Mat Mat Min Mat Traps Triggered . | . . . . . Indirectly . | . . . . . Trap Hack Attempts . | . . . . . Triggered . | . . . . . Disarmed . | . . . . . Reprogrammed . | . . . . . Reused 2 | . . . . 2 Traps Extracted . | . . . . . Installed 3 | . . . . 3 Triggered 2 | . . . . 2 Most Traps Carried 3 | . . . . 3 Machines | -11 -10 -9 -9 -8 ---------- Run | Yrd Mat Mat Min Mat Machines Disabled . | . . . . . Max in Single Turn . | . . . . . Garrison Access 1 | . . . . 1 Machines Repaired . | . . . . . Machines Dismantled . | . . . . . Machines Sabotaged . | . . . . . Overloaded Fab Kills . | . . . . . Hacking | -11 -10 -9 -9 -8 --------- Run | Yrd Mat Mat Min Mat Machines Accessed 7 | . 4 1 1 1 Terminals 4 | . 2 1 . 1 Fabricators . | . . . . . Repair Stations . | . . . . . Recycling Units 2 | . 2 . . . Scanalyzers . | . . . . . Garrison Access . | . . . . . Total Hacks 20 | . 12 3 1 4 Successful 11 | . 6 1 1 3 Failed 8 | . 5 2 . 1 Catastrophic 1 | . 1 . . . Database Lockouts 1 | . 1 . . . Manual 19 | . 16 . . 3 Terminals 16 | . 9 3 . 4 Fabricators . | . . . . . Repair Stations . | . . . . . Recycling Units 3 | . 3 . . . Scanalyzers . | . . . . . Garrison Access . | . . . . . Terminal Hacks 9 | . 4 1 1 3 Record 3 | . . . . 3 Robot Analysis 2 | . 1 1 . . Prototype ID Bank 1 | . 1 . . . Open Door 1 | . . . 1 . Locate Traps 1 | . 1 . . . Registered Components 1 | . 1 . . . Fabricator Hacks . | . . . . . Repair Station Hacks . | . . . . . Recycling Unit Hacks . | . . . . . Scanalyzer . | . . . . . Garrison Access Hacks . | . . . . . Unauthorized Hacks 2 | . 2 . . . Terminals . | . . . . . Fabricators . | . . . . . Repair Stations . | . . . . . Recycling Units 2 | . 2 . . . Reject 2 | . 2 . . . Scanalyzers . | . . . . . Garrison Access . | . . . . . Data Cores Recovered 2 | . 1 1 . . Used 1 | . . 1 . . Hacking Detections 5 | . 3 1 . 1 Full Trace Events 1 | . . . . 1 Feedback Events . | . . . . . Feedback Blocked . | . . . . . Robot Schematics Acquired . | . . . . . Robots Built . | . . . . . Authchips . | . . . . . Time . | . . . . . Total Robot Build Rating . | . . . . . Part Schematics Acquired . | . . . . . Parts Built . | . . . . . Authchips . | . . . . . Time . | . . . . . Total Part Build Rating . | . . . . . Part Studies Acquired . | . . . . . Parts Repaired . | . . . . . Time . | . . . . . Parts Recycled . | . . . . . Recycled Matter . | . . . . . Retrieved Matter . | . . . . . Retrieved Components . | . . . . . Parts Scanalyzed . | . . . . . Part Schematics Acquired . | . . . . . Parts Damaged . | . . . . . Bothacking | -11 -10 -9 -9 -8 ------------ Run | Yrd Mat Mat Min Mat Used RIF Installer . | . . . . . Robots Hacked . | . . . . . Non-combat . | . . . . . Combat . | . . . . . Robot Hacks Applied . | . . . . . Relay Couplers Released 3 | . . . . 3 Machine Destruction 3 | . . . . 3 Fabnet Peak Effective % . | . . . . . Robots Rewired . | . . . . . Allies Hacked . | . . . . . Hacks Repelled . | . . . . . Allies | -11 -10 -9 -9 -8 -------- Run | Yrd Mat Mat Min Mat Total Allies 12 | . 1 1 6 4 Largest Group 5 | . 1 1 5 4 Highest-Rated Group 64 | . 57 57 55 64 Highest-Rated Ally 57 | . 57 57 31 16 Total Orders 2 | . . . . 2 ROAM 2 | . . . . 2 Ally Attacks 73 | . 11 10 27 25 Total Damage 815 | . 190 302 224 99 Kills 14 | . 3 4 7 . Allies Corrupted . | . . . . . Allies Melted . | . . . . . X0-1V1 Amusement Gains 115 | . 10 20 . 85 Good Acts 20 | . 2 4 2 12 Bad Acts 19 | . 4 7 2 6 Intel | -11 -10 -9 -9 -8 ------- Run | Yrd Mat Mat Min Mat Active Infowar (turns) 1265 | . . 255 912 98 Structural 1265 | . . 255 912 98 Robot Analysis Total 2 | . 1 1 . . Derelict Logs Recovered 1 | . . . 1 . Drone Launches 16 | . . . . 16 Drone Recoveries . | . . . . . Exploration | -11 -10 -9 -9 -8 ------------- Run | Yrd Mat Mat Min Mat Turns Passed 2426 | . 529 757 1042 98 Spaces Moved 1381 | 1 301 298 760 21 Core . | . . . . . Treads 209 | . . 209 . . Legs 350 | 1 301 30 . 18 Wheels 822 | . . 59 760 3 Hover . | . . . . . Flight . | . . . . . Fastest Speed 120 | 120 120 120 120 120 Average Speed 141 | 120 120 191 129 180 Slowest Speed 320 | 120 190 320 130 190 Overloaded Moves . | . . . . . Propulsion Burnouts . | . . . . . Robots Hopped . | . . . . . Potential Cave-ins . | . . . . . Cave-ins Triggered . | . . . . . Exploration Rate (%) 43 | 2 35 24 98 59 Regions Visited 4 Branch Regions 1 Pre-discovered Areas 1 | . . . 1 . Known Exits Taken 1 | . . 1 . . Unknown Exits Taken 3 | 1 1 . 1 . Scrap Searched 2 | . . . 2 . Spaces Dug . | . . . . . Terrain Destroyed 11 | . . . . 11 Melee . | . . . . . Projectile . | . . . . . AOE 11 | . . . . 11 Terrain Rammed . | . . . . . Walls Destroyed . | . . . . . Machines Disabled . | . . . . . Actions | -11 -10 -9 -9 -8 --------- Run | Yrd Mat Mat Min Mat Total 1658 | . 389 396 794 79 Wait 69 | . 15 7 3 44 Move 1377 | . 300 297 759 21 Hop . | . . . . . Pick Up 23 | . 11 9 3 . Fast Attach 12 | . 5 5 2 . Attach 12 | . 3 7 . 2 Detach 2 | . . 1 . 1 Swap 19 | . 5 12 1 1 Drop 25 | . 8 8 6 3 Fire 105 | . 42 45 14 4 Melee . | . . . . . Ram 6 | . . . 6 . Kick . | . . . . . Crush 5 | . . 5 . . Escape Stasis . | . . . . . Rewire . | . . . . . Trap 3 | . . . . 3 Miscellaneous . | . . . . . Route ------- -11/Scrapyard -10/Materials (discovered 2 exits: *Mat / [*Sub]) -9/Materials -9/Mines (discovered 2 exits: *Mat x2) -8/Materials (discovered 4 exits: *Fac x3 / [*Sto]) History --------- Turn | Location | Event 1 | -11/Scrapyard | Discovered new exit (range 0) 1 | -11/Scrapyard | Entered Materials 99 | -10/Materials | Discovered new exit (range 10) 144 | -10/Materials | Central database locked down 190 | -10/Materials | Prayed at D.C.S.S. Altar Unit 227 | -10/Materials | Heat dissipation permanently improved by X0-1V1 (+15; -75 max core) 301 | -10/Materials | Build established: Mutant 325 | -10/Materials | Discovered new exit (range 8) 438 | -10/Materials | Core integrity fell below 50% 459 | -10/Materials | Core integrity fell below 20% 470 | -10/Materials | X0-1V1 sent allied Chaos Knight (x1) 497 | -10/Materials | Lost 3 parts (1n2w) 518 | -10/Materials | X0-1V1 added 0b10 threat records associated with you (major) 530 | -10/Materials | Entered another Materials area 530 | -9/Materials | Accompanied by 1 ally 530 | -9/Materials | Evolved 2 slots: Utility x2 662 | -9/Materials | X0-1V1 enhanced Transport squad support 671 | -9/Materials | X0-1V1 mutated your Propulsion slot to Utility slot 755 | -9/Materials | X0-1V1 announced a LAN party 888 | -9/Materials | X0-1V1 added 0b10 threat records associated with you (major) 930 | -9/Materials | Search patrols dispatched 1012 | -9/Materials | X0-1V1 activates XOMVISION 1029 | -9/Materials | X0-1V1 upgraded hostiles (x3) 1030 | -9/Materials | Core integrity fell below 50% 1127 | -9/Materials | Build established: Scavenger-Mutant 1163 | -9/Materials | X0-1V1 turns hostiles against one another 1244 | -9/Materials | Identified exit to Mines 1244 | -9/Materials | X0-1V1 revealed exit location to -9/Mines 1287 | -9/Materials | Entered Mines 1291 | -9/Mines | X0-1V1 sent allied S-10 Pest (x2) 1343 | -9/Mines | Discovered new exit (range 7) 1385 | -9/Mines | Assisted by bots powering up and referring to "LRC-V3" 1409 | -9/Mines | X0-1V1 rewrote Trooper 2b IFF filter 1454 | -9/Mines | Learned location of Zion (-6) 1477 | -9/Mines | Build established: Mutant 1478 | -9/Mines | Found the Drone Emporium 1484 | -9/Mines | Found Prototype Device 1484 | -9/Mines | Identified Bomb Drone Bay 1531 | -9/Mines | Found a hidden stash of uninstalled traps 1560 | -9/Mines | Received a Mining Laser from a helpful Derelict 2249 | -9/Mines | Core integrity fell below 20% 2318 | -9/Mines | Discovered new exit (range 8) 2329 | -9/Mines | Entered Materials 2329 | -8/Materials | Evolved 2 slots: Propulsion x2 2340 | -8/Materials | Energy generation permanently improved by X0-1V1 (+10; -100 max core) 2351 | -8/Materials | X0-1V1 sent you to a vault 2351 | -8/Materials | Discovered new exit (range 27) 2353 | -8/Materials | Discovered new exit (range 47) 2356 | -8/Materials | Ranged accuracy permanently improved by X0-1V1 (+8%; -80 max core) 2357 | -8/Materials | Identified exit to Factory 2357 | -8/Materials | X0-1V1 revealed exit location to -7/Factory 2359 | -8/Materials | X0-1V1 released a cloud of subatomizers 2361 | -8/Materials | X0-1V1 activates XOMVISION 2366 | -8/Materials | X0-1V1 announced a LAN party 2373 | -8/Materials | Discovered new exit (range 37) 2425 | -8/Materials | Core integrity fell below 50% 2427 | -8/Materials | Destroyed by G-50 Soldier with Heavy Laser Last Messages --------------- 02417_ ALERT: Hostiles spotted, dispatching reinforcements to Terminal M012. 02419_ Aluminum Leg destroyed. 02420_ Arm. Wheel destroyed. 02420_ X0-1V1 is interested. 02420_ Destroyed Arm. Wheel. 02421_ Aluminum Leg destroyed. 02422_ Subatomizers consume G-47 Trooper from within. 02422_ G-47 Trooper destroyed. 02423_ Imp. Assault Rifle destroyed. 02423_ G-47 Trooper destroyed. 02423_ Cld. Ion Engine destroyed. 02425_ Critical hit (Burn: +37). 02425_ G-47 Trooper destroyed. 02426_ X0-1V1's Piety Tracker destroyed. 02426_ X0-1V1 is mildly amused. 02427_ X0-1V1 is amused. 02427_ G-47 Trooper destroyed. 02427_ Destroyed Particle Gun. 02427_ X0-1V1 guffaws! Map ----- +----------------------------------------------------+ | # [ #????????????????????# # | | # * #????????????????????# """# | | # % #????????????????????# """# | | # ##???????????????????# ! """# | | # "#??#######??????????# # | | # " " T#??# #################+# | | # "G" "#??# | | # """ " = ##??# T ^ | | # " = #???# | | #####"" ##??# ! #################+# | | ????# " "#??## w##?????????????????? | | ######" T#???# #??????????????????? | | "##### ##?????????????????? | | ###### ##?????????????????? | | # # ##?????????????????? | | #+###########""""; # =# ##?????????????????? | | ?????????????##### # # ##?????????????????? | | ????????????????## # # ##?????????????????? | | ????????????????##w # # ##?????????????????? | | ?????????## ???? # # ##?????????????????? | | ?????????## # # ##?????????????????? | | ?????????## + % g # ##?????????????????? | | ?????????## # i g ##?????????????????? | | ?????????## # % ! #=?????????????????? | | ??????????# # % = # ???" #???????????? | | ??????????######## =%[ * @ #=?""" #??????!*???? | | ???????????????? # [*g # """ #??????!????? | | ???????????!???? # =% + #???????????? | | ???????????? "" /u * # #???????|???? | | ??????????# """ # g ############???????? | | ??????????# S" # # #???????? | | ??????????? # # # ######### #???????? | | ??????############ #! # # ????# +???????? | | ?????? # ### # ?!!??!# #???????? | | ?????????" """ ! # # + ?!????# ######### | | ?????????" """ %+ ### # # ????!?# =! | | ???????""" """k =# ###### ##??????# =! | | ????# # # # ##??????# """ ! | | ??????######### #??????# """ | | ??????????????# ######## """ | | ??????????# = g | | ????????=?#""" * | | ??????????#"R #g ##########+## | | ??????????#""" # ##???????????# #### | | ??????????# "" < ## #???????????## ##?? | | ??????????# =# #####?? #???????????# ### | | ???????????###########??????? #???????????# % | | ?????????????????????????????? ???????????# < | | ??????????????????????????????????????????# ##+ | | ??????????????????????????????????????????## ##?? | +----------------------------------------------------+ Best States ------------- Heat Dissipation 65 Energy Generation 24 Energy Capacity 280 Matter Stores 300 Matter Capacity 1000 Sight Range 18 Terrain Scan Density 10 Armor Coverage 150 Evasion (%) 55 Recoil Reduction 2 Item Schematics ----------------- None Robot Schematics ------------------ None Fabricated ------------ Nothing Repaired ---------- Nothing Studied --------- None Alien Tech Used ----------------- None Achievements -------------- Chaos Is Inevitable Challenges ------------ None Game ------ Seed DrainedMassTurbovents Manual? 0 Play Time 00:34:15 Cumulative 89.4 hours Start 2026.07.04 @ 22:05:28 End 2026.07.04 @ 22:40:35 Sessions 1 Manual Loads 0 Difficulty Rogue Special Mode None Game No. 97 Rogue 97 Adventurer 0 Explorer 0 Win Type - Total 2 Types 2/0/0/0/0/0/0/0/0/0 Lore% 39 Gallery% 38 Achievement% 35 Wizard Run 0 Options --------- Layout 0 ASCII 0 Keyboard 1 Movement Arrows Keybinds 0 Fullscreen 0 Font 20/Smallcaps Map View 76x50 Zoom Use 0% Tactical HUD 1 Map Filters NONE Filters NONE Steam 1 RUN: 48892857-511d-40f9-8930-cfc004c21c97